fUSD/lending_fUSD_20260515
["ID","MTS","AMOUNT","RATE_DAILY","PERIOD"]
[422273062,1778778638000,-500.0,0.00011908,2]
[422273069,1778778638000,-500.0,0.00011908,2]
[422273068,1778778638000,-500.0,0.00011908,2]
[422273071,1778778638000,-21246.29616711,0.00012574,2]
[422273070,1778778638000,-500.0,0.00011908,2]
[422273067,1778778638000,-500.0,0.00011908,2]
[422273066,1778778638000,-500.0,0.00011908,2]
[422273103,1778778641000,-158.81004731,0.00013149,2]
[422273102,1778778641000,-166.66,0.00013132,2]
[422273111,1778778641000,-500.0,0.00013698,2]
[422273113,1778778641000,-500.0,0.00013698,2]
[422273104,1778778641000,-208.3309892,0.00013179,2]
[422273112,1778778641000,-500.0,0.00013698,2]
[422273105,1778778641000,-214.95940296,0.00013179,2]
[422273106,1778778641000,-160.0,0.00013179,2]
[422273107,1778778641000,-1000.0,0.000135,2]
[422273108,1778778641000,-158.81004731,0.00013522,2]
[422273101,1778778641000,-5410.10337762,0.0001305,2]
[422273094,1778778641000,-69039.12901032,0.00012906,2]
[422273098,1778778641000,-4146.17297631,0.00013,5]
[422273096,1778778641000,-552.7858693,0.00012913,2]
[422273095,1778778641000,-1250643.85831314,0.00012913,2]
[422273100,1778778641000,-2000.0,0.00013013,2]
[422273097,1778778641000,-229.63,0.00012913,2]
[422273099,1778778641000,-33171.8854,0.00013013,2]
[422273093,1778778641000,-47792.83284321,0.00012574,2]
[422273115,1778778641000,-500.0,0.00013698,2]
[422273109,1778778641000,-166.66,0.00013566,2]
[422273114,1778778641000,-500.0,0.00013698,2]
[422273110,1778778641000,-500.0,0.00013698,2]
[422273120,1778778641000,-500.0,0.00013698,2]
[422273117,1778778641000,-500.0,0.00013698,2]
[422273152,1778778641000,-500.0,0.00013698,2]
[422273153,1778778641000,-500.0,0.00013698,2]
[422273151,1778778641000,-500.0,0.00013698,2]
[422273148,1778778641000,-500.0,0.00013698,2]
[422273142,1778778641000,-500.0,0.00013698,2]
[422273133,1778778641000,-500.0,0.00013698,2]
[422273129,1778778641000,-500.0,0.00013698,2]
[422273149,1778778641000,-500.0,0.00013698,2]
[422273135,1778778641000,-500.0,0.00013698,2]
[422273146,1778778641000,-500.0,0.00013698,2]
[422273140,1778778641000,-500.0,0.00013698,2]
[422273137,1778778641000,-500.0,0.00013698,2]
[422273116,1778778641000,-500.0,0.00013698,2]
[422273131,1778778641000,-500.0,0.00013698,2]
[422273118,1778778641000,-500.0,0.00013698,2]
[422273121,1778778641000,-500.0,0.00013698,2]
[422273125,1778778641000,-500.0,0.00013698,2]
[422273123,1778778641000,-500.0,0.00013698,2]
[422273119,1778778641000,-500.0,0.00013698,2]
[422273144,1778778641000,-500.0,0.00013698,2]
[422273150,1778778641000,-500.0,0.00013698,2]
[422273127,1778778641000,-500.0,0.00013698,2]
[422273167,1778778642000,-500.0,0.00013698,2]
[422273178,1778778642000,-158.81004731,0.00013894,2]
[422273173,1778778642000,-428.68037677,0.00013698,2]
[422273181,1778778642000,-166.66,0.00014,2]
[422273177,1778778642000,-2000.0,0.00013738,2]
[422273176,1778778642000,-1270.47,0.000137,2]
[422273182,1778778642000,-250.0,0.00014,2]
[422273175,1778778642000,-2500.0,0.00013699,2]
[422273186,1778778642000,-166.66,0.00014309,2]
[422273179,1778778642000,-1852.42,0.00013894,2]
[422273188,1778778642000,-166.66,0.00014433,2]
[422273180,1778778642000,-166.66,0.00013902,2]
[422273184,1778778642000,-1672.11,0.000141,2]
[422273174,1778778642000,-166.66,0.00013699,2]
[422273183,1778778642000,-200.0,0.00014061,2]
[422273164,1778778642000,-457.86163364,0.00013698,2]
[422273161,1778778642000,-520.0293993,0.00013698,2]
[422273170,1778778642000,-500.0,0.00013698,2]
[422273154,1778778642000,-500.0,0.00013698,2]
[422273156,1778778642000,-500.0,0.00013698,2]
[422273162,1778778642000,-500.0,0.00013698,2]
[422273160,1778778642000,-500.0,0.00013698,2]
[422273159,1778778642000,-500.0,0.00013698,2]
[422273155,1778778642000,-500.0,0.00013698,2]
[422273166,1778778642000,-500.0,0.00013698,2]
[422273158,1778778642000,-500.0,0.00013698,2]
[422273163,1778778642000,-500.0,0.00013698,2]
[422273168,1778778642000,-500.0,0.00013698,2]
[422273172,1778778642000,-500.0,0.00013698,2]
[422273171,1778778642000,-500.0,0.00013698,2]
[422273165,1778778642000,-500.0,0.00013698,2]
[422273169,1778778642000,-500.0,0.00013698,2]
[422273157,1778778642000,-500.0,0.00013698,2]
[422273187,1778778642000,-333.73233762,0.0001439,2]
[422273185,1778778642000,-166.66,0.00014106,2]
[422273189,1778778642000,-166.66,0.00014513,2]
[422273212,1778778642000,-1200.0,0.000148,5]
[422273218,1778778642000,-1181.2062727,0.000149,2]
[422273213,1778778642000,-166.66,0.00014867,2]
[422273214,1778778642000,-366.42921984,0.000149,2]
[422273216,1778778642000,-150.49024941,0.000149,2]
[422273217,1778778642000,-11771.83215838,0.000149,2]
[422273198,1778778642000,-151.0,0.00014735,2]
[422273210,1778778642000,-151.0,0.00014735,2]
[422273219,1778778642000,-1107234.04078933,0.00015,2]
[422273221,1778778642000,-2075.94096564,0.00015,2]
[422273220,1778778642000,-835762.56248743,0.00015,2]
[422273223,1778778642000,-1047788.22576351,0.00015,2]
[422273222,1778778642000,-2531.85443811,0.00015,14]
[422273190,1778778642000,-166.66,0.00014717,2]
[422273215,1778778642000,-200.0,0.000149,5]
[422273209,1778778642000,-151.0,0.00014735,2]
[422273211,1778778642000,-159.99,0.00014767,2]
[422273200,1778778642000,-151.0,0.00014735,2]
[422273191,1778778642000,-151.0,0.00014735,2]
[422273196,1778778642000,-151.0,0.00014735,2]
[422273194,1778778642000,-151.0,0.00014735,2]
[422273197,1778778642000,-151.0,0.00014735,2]
[422273192,1778778642000,-151.0,0.00014735,2]
[422273204,1778778642000,-151.0,0.00014735,2]
[422273195,1778778642000,-151.0,0.00014735,2]
[422273199,1778778642000,-151.0,0.00014735,2]
[422273193,1778778642000,-151.0,0.00014735,2]
[422273201,1778778642000,-151.0,0.00014735,2]
[422273202,1778778642000,-151.0,0.00014735,2]
[422273203,1778778642000,-151.0,0.00014735,2]
[422273205,1778778642000,-151.0,0.00014735,2]
[422273208,1778778642000,-151.0,0.00014735,2]
[422273206,1778778642000,-151.0,0.00014735,2]
[422273207,1778778642000,-151.0,0.00014735,2]
[422273247,1778778643000,-147.39040602,0.00012713,2]
[422273246,1778778643000,-282.571038,0.00012713,2]
[422273265,1778778646000,-21105.37373476,0.00013238,2]
[422273262,1778778646000,-808.91994,0.00012713,2]
[422273263,1778778646000,-8990.46911598,0.00012713,2]
[422273264,1778778646000,-47933.75527556,0.00013238,2]
[422273267,1778778646000,-5389.30429567,0.000149,2]
[422273268,1778778646000,-23775.19638919,0.00015,2]
[422273270,1778778646000,-8648.30878799,0.00015,2]
[422273271,1778778646000,-14753.07212931,0.00015,2]
[422273266,1778778646000,-158.81004731,0.00014266,2]
[422273269,1778778646000,-8081.24756366,0.00015,2]
[422273285,1778779362000,151.67,7.542e-05,2]
[422273284,1778779362000,151.67,6.495e-05,2]
[422273283,1778779362000,151.67,5.448e-05,2]
[422273288,1778779597000,-151.67,8.589e-05,2]
[422273290,1778779623000,-150.0,9.732e-05,2]
[422273289,1778779623000,-151.67,9.636e-05,2]
[422273292,1778779655000,-57.56,0.00010286,2]
[422273291,1778779655000,-159.1,0.00010239,2]
[422273316,1778779833000,-9999.99,0.00010683,2]
[422273314,1778779833000,-1627.61,0.00010683,2]
[422273324,1778779833000,-1162.60998154,0.00010967,2]
[422273317,1778779833000,-150.99,0.00010683,2]
[422273315,1778779833000,-499.99,0.00010683,2]
[422273322,1778779833000,-150.0,0.00010959,2]
[422273319,1778779833000,-217.2,0.00010786,2]
[422273321,1778779833000,-4000.0,0.00010921,2]
[422273323,1778779833000,-150.0,0.00010959,2]
[422273320,1778779833000,-14688.8489,0.00010868,2]
[422273313,1778779833000,-9999.99,0.00010683,2]
[422273318,1778779833000,-9999.99,0.00010683,2]
[422273312,1778779833000,-4110.79,0.00010683,2]
[422273308,1778779833000,-500.0,0.00010405,2]
[422273310,1778779833000,-4000.0,0.00010661,2]
[422273311,1778779833000,-151.67,0.00010683,2]
[422273307,1778779833000,-372.73918909,0.00010401,2]
[422273306,1778779833000,-2433.60632184,0.00010401,2]
[422273325,1778779833000,-8895.13901685,0.00010967,2]
[422273304,1778779833000,-106.34551093,0.00010331,2]
[422273305,1778779833000,-1193.65448907,0.00010401,2]
[422273302,1778779833000,-201.15923283,0.00010305,2]
[422273303,1778779833000,-143.65448907,0.00010331,2]
[422273301,1778779833000,-151.3,0.00010286,2]
[422273299,1778779833000,-1767.61,0.00010259,2]
[422273300,1778779833000,-250.0,0.00010273,2]
[422273309,1778779833000,-150.97,0.00010491,2]
[422273330,1778779833000,-500.0,0.00010967,2]
[422273357,1778779833000,-1254.41808677,0.00010968,2]
[422273328,1778779833000,-500.0,0.00010967,2]
[422273360,1778779833000,-2028.0696,0.00010968,2]
[422273356,1778779833000,-122538.94758848,0.00010968,2]
[422273358,1778779833000,-370.20635776,0.00010968,2]
[422273359,1778779833000,-814.19988441,0.00010968,2]
[422273354,1778779833000,-93015.21556418,0.00010968,2]
[422273352,1778779833000,-25090.57172105,0.00010968,2]
[422273349,1778779833000,-439990.58312415,0.00010968,2]
[422273345,1778779833000,-473.71851579,0.00010967,2]
[422273347,1778779833000,-500.0,0.00010967,2]
[422273340,1778779833000,-500.0,0.00010967,2]
[422273329,1778779833000,-209.63507875,0.00010967,2]
[422273346,1778779833000,-500.0,0.00010967,2]
[422273342,1778779833000,-500.0,0.00010967,2]
[422273344,1778779833000,-500.0,0.00010967,2]
[422273343,1778779833000,-500.0,0.00010967,2]
[422273339,1778779833000,-500.0,0.00010967,2]
[422273338,1778779833000,-500.0,0.00010967,2]
[422273337,1778779833000,-500.0,0.00010967,2]
[422273335,1778779833000,-500.0,0.00010967,2]
[422273336,1778779833000,-500.0,0.00010967,2]
[422273334,1778779833000,-500.0,0.00010967,2]
[422273327,1778779833000,-500.0,0.00010967,2]
[422273341,1778779833000,-500.0,0.00010967,2]
[422273332,1778779833000,-194.70169504,0.00010967,2]
[422273333,1778779833000,-391.60089265,0.00010967,2]
[422273326,1778779833000,-320.33669627,0.00010967,2]
[422273331,1778779833000,-500.0,0.00010967,2]
[422273380,1778779838000,-669.80088008,0.00010968,2]
[422273381,1778779838000,-14387.80969701,0.00010968,2]
[422273379,1778779838000,-107504.77926193,0.00010968,2]
[422273378,1778779838000,-948.728,0.00010968,2]
[422273394,1778779838000,-310.9858506,0.00010968,2]
[422273383,1778779838000,-389014.44331101,0.00010968,2]
[422273384,1778779838000,-125723.62080335,0.00010968,2]
[422273389,1778779838000,-1159.39817366,0.00010968,2]
[422273385,1778779838000,-6165.96181416,0.00010968,2]
[422273387,1778779838000,-1447.02718738,0.00010968,2]
[422273391,1778779838000,-4154.18657587,0.00010968,2]
[422273392,1778779838000,-2785.16395854,0.00010968,2]
[422273382,1778779838000,-431056.58005956,0.00010968,2]
[422273599,1778779840000,-399.735,0.00010968,2]
[422273598,1778779840000,-8398.56580661,0.00010968,2]
[422273608,1778779840000,-1000.0,0.00011067,2]
[422273610,1778779840000,-1593.2314,0.00011068,2]
[422273617,1778779840000,-158.81004731,0.00011099,2]
[422273613,1778779840000,-2500.0,0.00011097,2]
[422273612,1778779840000,-4166.5479,0.00011068,2]
[422273618,1778779840000,-119563.58,0.00011169,2]
[422273615,1778779840000,-34560.42175159,0.00011099,2]
[422273620,1778779840000,-4000.0,0.00011181,2]
[422273622,1778779840000,-500.0,0.00011197,2]
[422273625,1778779840000,-2257.67,0.000112,2]
[422273623,1778779840000,-999.99,0.00011197,2]
[422273627,1778779840000,-5000.0,0.000112,2]
[422273630,1778779840000,-195.0,0.00011285,2]
[422273628,1778779840000,-667.97049438,0.00011242,2]
[422273607,1778779840000,-720771.00169344,0.00010968,2]
[422273646,1778779841000,-160.0,0.00011486,2]
[422273641,1778779841000,-347.9135,0.00011342,2]
[422273631,1778779841000,-211.84730379,0.00011285,2]
[422273633,1778779841000,-250.0,0.00011285,2]
[422273634,1778779841000,-34560.42175159,0.00011286,2]
[422273638,1778779841000,-151.0,0.00011297,2]
[422273636,1778779841000,-151.0,0.00011297,2]
[422273644,1778779841000,-4000.0,0.00011441,2]
[422273639,1778779841000,-940.18848869,0.00011299,2]
[422273643,1778779841000,-150.97,0.00011357,2]
[422273652,1778779841000,-176.66666667,0.00011639,2]
[422273664,1778779841000,-543.35604179,0.000118,2]
[422273648,1778779841000,-214.95940296,0.00011497,2]
[422273656,1778779841000,-176.66666667,0.00011639,2]
[422273657,1778779841000,-10000.0,0.000117,2]
[422273649,1778779841000,-208.3309892,0.00011497,2]
[422273659,1778779841000,-979.87644066,0.0001177,2]
[422273654,1778779841000,-176.66666667,0.00011639,2]
[422273661,1778779841000,-902807.43073948,0.000118,2]
[422273662,1778779841000,-9622.26302747,0.000118,2]
[422273651,1778779841000,-34560.42175159,0.00011605,2]
[422273666,1778779841000,-1166.14548875,0.000118,2]
[422273722,1778779843000,-34560.42175159,0.00012882,2]
[422273724,1778779843000,-3017.7961671,0.00012913,2]
[422273725,1778779843000,-34560.42175159,0.00013201,2]
[422273726,1778779843000,-166.66,0.00013339,2]
[422273729,1778779843000,-500.0,0.00013698,2]
[422273728,1778779843000,-34560.42175159,0.0001352,2]
[422273723,1778779843000,-1877.67502266,0.00012913,2]
[422273727,1778779843000,-992.94,0.00013378,2]
[422273721,1778779843000,-166.66,0.00012849,2]
[422273715,1778779843000,-34560.42175159,0.00012243,2]
[422273718,1778779843000,-200.0,0.00012422,2]
[422273717,1778779843000,-166.66,0.00012359,2]
[422273720,1778779843000,-2000.0,0.00012713,2]
[422273716,1778779843000,-545.78,0.00012329,2]
[422273713,1778779843000,-34560.42175159,0.00011924,2]
[422273714,1778779843000,-150.97,0.00012222,2]
[422273710,1778779843000,-18261.44449479,0.000118,2]
[422273711,1778779843000,-567599.36020772,0.000118,2]
[422273712,1778779843000,-166.66,0.0001187,2]
[422273719,1778779843000,-34560.42175159,0.00012563,2]
[422273730,1778779843000,-500.0,0.00013698,2]
[422273737,1778779843000,-620.67702494,0.00013698,2]
[422273734,1778779843000,-500.0,0.00013698,2]
[422273752,1778779843000,-500.0,0.00013698,2]
[422273750,1778779843000,-200.94834515,0.00013698,2]
[422273751,1778779843000,-500.0,0.00013698,2]
[422273749,1778779843000,-500.0,0.00013698,2]
[422273746,1778779843000,-500.0,0.00013698,2]
[422273744,1778779843000,-500.0,0.00013698,2]
[422273742,1778779843000,-396.00482015,0.00013698,2]
[422273747,1778779843000,-500.0,0.00013698,2]
[422273740,1778779843000,-500.0,0.00013698,2]
[422273741,1778779843000,-500.0,0.00013698,2]
[422273743,1778779843000,-500.0,0.00013698,2]
[422273748,1778779843000,-500.0,0.00013698,2]
[422273739,1778779843000,-166.02,0.00013698,2]
[422273738,1778779843000,-500.0,0.00013698,2]
[422273736,1778779843000,-500.0,0.00013698,2]
[422273735,1778779843000,-500.0,0.00013698,2]
[422273732,1778779843000,-500.0,0.00013698,2]
[422273733,1778779843000,-500.0,0.00013698,2]
[422273745,1778779843000,-500.0,0.00013698,2]
[422273731,1778779843000,-500.0,0.00013698,2]
[422273756,1778779844000,-166.66,0.00013699,2]
[422273761,1778779844000,-158.81004731,0.00013839,2]
[422273753,1778779844000,-383.3304357,0.00013698,2]
[422273754,1778779844000,-2500.0,0.00013699,2]
[422273755,1778779844000,-200.0,0.00013699,2]
[422273758,1778779844000,-1172.98,0.000137,2]
[422273759,1778779844000,-166.66,0.00013829,2]
[422273762,1778779844000,-34560.42175159,0.00013839,2]
[422273763,1778779844000,-164942.32702235,0.00013939,2]
[422273767,1778779844000,-1046.88928713,0.00013939,2]
[422273768,1778779844000,-81676.998,0.00013939,2]
[422273760,1778779844000,-166.66,0.00013836,2]
[422273773,1778779846000,-9809.26956671,0.00013939,2]
[422273775,1778779847000,-1010.24747413,0.00013939,2]
[422273831,1778780310000,167.61,7.88e-05,2]
[422273830,1778780310000,167.61,5.968e-05,2]
[422273832,1778780354000,-167.61,9.791e-05,2]
[422273838,1778781032000,-116.33662392,0.00010217,2]
[422273839,1778781032000,-133.66337608,0.00010217,2]
[422273837,1778781032000,-500.0,0.00010139,2]
[422273841,1778781032000,-200.0,0.00010461,2]
[422273840,1778781032000,-250.0,0.00010435,2]
[422273842,1778781032000,-174.52620334,0.00010511,2]
[422273844,1778781033000,-1342.50878399,0.00010513,2]
[422273843,1778781033000,-1825.47379666,0.00010511,2]
[422273895,1778781037000,-5115.00000002,0.00010513,2]
[422273897,1778781037000,-10959.35561506,0.00010567,2]
[422273896,1778781037000,-115736.24121599,0.00010513,2]
[422273898,1778781037000,-224.23568739,0.00010567,2]
[422273900,1778781037000,-500.0,0.00010567,2]
[422273899,1778781037000,-500.0,0.00010567,2]
[422273901,1778781037000,-500.0,0.00010567,2]
[422273910,1778781037000,-4588.51166109,0.00010568,2]
[422273902,1778781037000,-324.12062486,0.00010567,2]
[422273905,1778781037000,-386.29118653,0.00010567,2]
[422273908,1778781037000,-542.46609112,0.00010568,2]
[422273906,1778781037000,-552.63539064,0.00010567,2]
[422273903,1778781037000,-500.0,0.00010567,2]
[422273909,1778781037000,-11890.46956227,0.00010568,2]
[422273904,1778781037000,-500.0,0.00010567,2]
[422273907,1778781037000,-1276806.2296661,0.00010568,2]
[422273918,1778781039000,-58248.90765758,0.00010568,2]
[422273914,1778781039000,-676.79985331,0.00010568,2]
[422273913,1778781039000,-913.801635,0.00010568,2]
[422273921,1778781040000,-6763.15997192,0.00010568,2]
[422273920,1778781040000,-21054.76808772,0.00010568,2]
[422273919,1778781040000,-1146332.81387353,0.00010568,2]
[422273926,1778781042000,-9170.35582512,0.00010568,2]
[422273927,1778781043000,-557.93881428,0.00010568,2]
[422273932,1778781045000,-450.0,0.00010567,2]
[422273931,1778781045000,-229.29328659,0.00010567,2]
[422273934,1778781045000,-33784.88042425,0.00010568,2]
[422273933,1778781045000,-19561.32191337,0.00010568,2]
[422273935,1778781046000,-6332.39122156,0.00010568,2]
[422273936,1778781046000,-317.90634479,0.00010568,2]
[422273949,1778781093000,300.0,0.000108,3]
[422273950,1778781095000,700.0,0.000109,3]
[422273953,1778781207000,161.52,6.139e-05,2]
[422273952,1778781207000,161.52,5.599e-05,2]
[422273951,1778781207000,161.52,5.059e-05,2]
[422273956,1778781208000,161.52,7.759e-05,2]
[422273955,1778781208000,161.52,7.219e-05,2]
[422273954,1778781208000,161.52,6.679e-05,2]
[422273957,1778781209000,161.52,8.299e-05,2]
[422273959,1778781209000,161.52,9.379e-05,2]
[422273960,1778781209000,161.52,9.919e-05,2]
[422273958,1778781209000,161.52,8.839e-05,2]
[422273961,1778781216000,500.0,9.868e-05,2]
[422273962,1778781272000,208.034994,9.988e-05,2]
[422273963,1778781315000,159.73,9.809e-05,2]
[422273964,1778781361000,220.89,9.809e-05,2]
[422273965,1778781409000,564.29,9.796e-05,2]
[422273966,1778781605000,3199.97,9.839e-05,2]
[422273967,1778781640000,2000.0,9.847e-05,2]
[422273969,1778781753000,2386.71065149,8e-05,2]
[422273970,1778781875000,285.47,9.266e-05,2]
[422273971,1778781897000,200.0,9.76e-05,2]
[422273972,1778781909000,5530.0,0.00012,3]
[422273973,1778781931000,201.76391904,0.0001,2]
[422273974,1778781940000,5530.0,0.00012,3]
[422273975,1778781957000,157.78,4.969e-05,2]
[422273976,1778781957000,157.78,5.367e-05,2]
[422273979,1778781957000,157.78,6.561e-05,2]
[422273978,1778781957000,157.78,6.163e-05,2]
[422273977,1778781957000,157.78,5.765e-05,2]
[422273983,1778781958000,157.78,8.152e-05,2]
[422273982,1778781958000,157.78,7.754e-05,2]
[422273981,1778781958000,157.78,7.356e-05,2]
[422273980,1778781958000,157.78,6.959e-05,2]
[422273987,1778781959000,157.78,9.744e-05,2]
[422273986,1778781959000,157.78,9.346e-05,2]
[422273985,1778781959000,157.78,8.948e-05,2]
[422273984,1778781959000,157.78,8.55e-05,2]
[422273988,1778781972000,5530.0,0.000116,3]
[422273989,1778782003000,5530.0,0.000116,3]
[422273990,1778782016000,1380.28,9.757e-05,2]
[422273991,1778782035000,5530.0,0.00012,5]
[422273992,1778782035000,5530.0,0.000113,3]
[422273993,1778782042000,300.0,0.000105,3]
[422273995,1778782044000,250.27,9.768e-05,2]
[422273994,1778782044000,600.0,0.000106,3]
[422273996,1778782046000,1000.0,0.000107,3]
[422273997,1778782049000,1300.0,0.000108,3]
[422273998,1778782051000,1700.0,0.000109,3]
[422274000,1778782066000,2479.16263349,0.00012,5]
[422273999,1778782066000,3050.83736651,0.00012,5]
[422274001,1778782067000,5530.0,0.000113,3]
[422274002,1778782098000,5530.0,0.000117,5]
[422274003,1778782099000,5530.0,0.00011,3]
[422274005,1778782130000,5530.0,0.00011,3]
[422274004,1778782130000,5530.0,0.000117,5]
[422274006,1778782162000,5530.0,0.000115,5]
[422274007,1778782162000,5530.0,0.000108,3]
[422274008,1778782173000,-263.27248541,0.00010039,2]
[422274009,1778782193000,5530.0,0.000115,5]
[422274011,1778782194000,2249.16263349,0.000108,3]
[422274010,1778782194000,3280.83736651,0.000108,3]
[422274014,1778782225000,54367.0,0.0001,2]
[422274013,1778782225000,5530.0,0.000107,3]
[422274012,1778782225000,5530.0,0.000114,5]
[422274023,1778782231000,-1177.28596879,0.00010027,2]
[422274022,1778782231000,-479.0,0.00010027,2]
[422274024,1778782231000,-1701.90287498,0.00010027,2]
[422274026,1778782231000,-145.52521459,0.00010039,2]
[422274025,1778782231000,-641.81115623,0.00010027,2]
[422274027,1778782231000,-300.0,0.00010099,2]
[422274029,1778782231000,-166.14,0.00010116,2]
[422274031,1778782231000,-106.88928002,0.00010278,2]
[422274032,1778782231000,-5237.2344293,0.00010442,2]
[422274030,1778782231000,-3893.11071998,0.00010278,2]
[422274035,1778782231000,-500.0,0.00010466,2]
[422274028,1778782231000,-1200.0,0.00010099,2]
[422274034,1778782231000,-500.0,0.00010466,2]
[422274036,1778782231000,-623.81739779,0.00010466,2]
[422274038,1778782231000,-185.59282774,0.00010466,2]
[422274037,1778782231000,-235.97971086,0.00010466,2]
[422274039,1778782231000,-214.40717226,0.00010466,2]
[422274042,1778782231000,-35819.7938603,0.00010467,2]
[422274041,1778782231000,-496.2484482,0.00010467,2]
[422274040,1778782231000,-97131.35420176,0.00010467,2]
[422274033,1778782231000,-500.0,0.00010466,2]
[422274047,1778782237000,-8393.22571905,0.00010467,2]
[422274049,1778782238000,-1449.10393831,0.00010467,2]
[422274048,1778782238000,-1013.0,0.00010467,2]
[422274100,1778782239000,-1593.2314,0.00010368,2]
[422274101,1778782240000,-740232.53838116,0.00010467,2]
[422274102,1778782240000,-6164.02655607,0.00010467,2]
[422274104,1778782241000,-6210.8084774,0.00010467,2]
[422274105,1778782241000,-406.5945204,0.00010467,2]
[422274103,1778782241000,-506.7307497,0.00010467,2]
[422274114,1778782242000,-9045.99999988,0.00010467,2]
[422274118,1778782243000,-3977.4373494,0.00010467,2]
[422274117,1778782243000,-6405.64218561,0.00010467,2]
[422274115,1778782243000,-1296.46894859,0.00010467,2]
[422274116,1778782243000,-1443.47606513,0.00010467,2]
[422274124,1778782246000,-1115.04689121,0.00010467,2]
[422274126,1778782246000,-51190.84934962,0.00010467,2]
[422274128,1778782246000,-369.70264647,0.00010467,2]
[422274127,1778782246000,-20410.33296052,0.00010467,2]
[422274125,1778782246000,-4010.52364607,0.00010467,2]
[422274135,1778782270000,282.14,9.826e-05,2]
[422274136,1778782343000,205.61,9.845e-05,2]
[422274137,1778782454000,2000.0,9.78e-05,2]
[422274138,1778782513000,243.59855272,0.00027397,120]
[422274139,1778782651000,1000.0,9.71e-05,2]
[422274140,1778782690000,200.0,9.702e-05,2]
[422274141,1778782766000,1873.19,9.682e-05,2]
[422274142,1778782988000,1320.482796,7.945e-05,2]
[422274144,1778783054000,157.68,5.215e-05,2]
[422274143,1778783054000,157.68,4.901e-05,2]
[422274146,1778783054000,157.68,5.843e-05,2]
[422274145,1778783054000,157.68,5.529e-05,2]
[422274150,1778783055000,157.68,7.099e-05,2]
[422274149,1778783055000,157.68,6.785e-05,2]
[422274148,1778783055000,157.68,6.471e-05,2]
[422274147,1778783055000,157.68,6.157e-05,2]
[422274151,1778783055000,157.68,7.413e-05,2]
[422274155,1778783056000,157.68,8.669e-05,2]
[422274154,1778783056000,157.68,8.355e-05,2]
[422274153,1778783056000,157.68,8.041e-05,2]
[422274152,1778783056000,157.68,7.727e-05,2]
[422274156,1778783057000,157.68,8.983e-05,2]
[422274158,1778783057000,157.68,9.61e-05,2]
[422274157,1778783057000,157.68,9.297e-05,2]
[422274159,1778783116000,220.89,9.559e-05,2]
[422274160,1778783312000,200.0,9.6e-05,3]
[422274161,1778783314000,400.0,9.7e-05,3]
[422274162,1778783317000,600.0,9.8e-05,3]
[422274163,1778783319000,800.0,9.9e-05,3]
[422274164,1778783321000,1000.0,0.0001,3]
[422274168,1778783431000,-2868.43,0.00010027,2]
[422274170,1778783431000,-95.68972123,0.00010061,2]
[422274171,1778783431000,-312.31697877,0.00010061,2]
[422274169,1778783431000,-500.0,0.00010061,2]
[422274173,1778783431000,-300.0,0.00010092,2]
[422274175,1778783431000,-166.818,0.00010161,2]
[422274176,1778783431000,-500.0,0.00010167,2]
[422274172,1778783431000,-218.0,0.00010092,2]
[422274174,1778783431000,-2371.433,0.00010161,2]
[422274181,1778783432000,-500.0,0.00010167,2]
[422274180,1778783432000,-160.73891487,0.00010167,2]
[422274182,1778783432000,-500.0,0.00010167,2]
[422274178,1778783432000,-500.0,0.00010167,2]
[422274189,1778783432000,-282.35514872,0.00010167,2]